Cogmind - Beta 17 @@@ ROGUE MODE // 2026.07.06 @ 00:45:25 Player: VC94 Result: Smashed by cave-in Performance ------------- Evolutions (1) 500 Regions Visited (3) 600 Robots Destroyed (34) 170 Value Destroyed (873) 873 Prototype IDs (1) 20 Alien Tech Used (0) 0 Bonus (0) 0 TOTAL SCORE: 2163 Bonus ------- None Cogmind --------- Core Integrity 0/400 Matter 82/300 Energy 106/250 System Corruption 2% Temperature Cool (0) Movement Walking (120) Location -9/Storage Parts ------- > --- POWER (1) -------- Ion Engine > --- PROPULSION (3) --- Aluminum Leg Aluminum Leg Aluminum Leg > --- UTILITY (3) ------ Medium Storage Unit Signal Interpreter Improved Targeting Computer > --- WEAPON (2) ------- (None) > --- INVENTORY (10) --- Medium Armor Plating Shield Generator Datajack Peak State ------------ > --- POWER ------------ (None) > --- PROPULSION ------- Aluminum Leg Aluminum Leg > --- UTILITY ---------- Medium Storage Unit Signal Interpreter Improved Targeting Computer > --- WEAPON ----------- Precision Rocket Launcher > --- INVENTORY -------- Medium Armor Plating Shield Generator Datajack [Rating: 12] Favorites ----------- Power Light Ion Engine Engine Light Ion Engine Propulsion Aluminum Leg Leg Aluminum Leg Utility Medium Storage Unit Storage Medium Storage Unit Processor Signal Interpreter Weapon Assault Rifle Energy Gun Small Laser Ballistic Gun Assault Rifle Launcher Grenade Launcher Build | -11 -10 -9 -9 ------- Run | Yrd Mat Mat Sto Slots Evolved 2 | . . 2 . Power . | . . . . Propulsion 1 | . . 1 . Utility 1 | . . 1 . Weapon . | . . . . Parts Attached 25 | 6 8 3 8 Power 5 | 1 3 . 1 Engine 5 | 1 3 . 1 Core . | . . . . Reactor . | . . . . Propulsion 9 | 2 2 1 4 Treads . | . . . . Leg 9 | 2 2 1 4 Wheel . | . . . . Hover . | . . . . Flight . | . . . . Utility 4 | 1 1 2 . Device . | . . . . Storage 2 | 1 1 . . Processor 2 | . . 2 . Hackware . | . . . . Protection . | . . . . Artifact . | . . . . Weapon 7 | 2 2 . 3 Energy Gun 2 | 1 . . 1 Energy Cannon . | . . . . Ballistic Gun 3 | 1 1 . 1 Ballistic Cannon . | . . . . Launcher 2 | . 1 . 1 Special Weapon . | . . . . Impact Weapon . | . . . . Slashing Weapon . | . . . . Piercing Weapon . | . . . . Special Melee Weapon . | . . . . Unidentified Prototypes 1 | . . . 1 Parts Lost 10 | . 3 . 7 Power 2 | . 1 . 1 Propulsion 3 | . . . 3 Utility . | . . . . Weapon 5 | . 2 . 3 Highest Loss Streak 6 | . 2 . 6 To Critical Strikes . | . . . . Average Backups 4 | 1 5 5 5 Power . | . . . . Propulsion 1 | . 2 2 1 Utility . | . . 1 2 Weapon . | . . 1 1 Tool/Special . | . . . . Unused Backups 4 | . 1 . 3 Power . | . . . . Propulsion 1 | . 1 . . Utility 2 | . . . 2 Weapon . | . . . . Tool/Special 1 | . . . 1 Average Slot Usage (%) 80 | . 82 87 66 Engine 11 | . 13 11 4 Leg 28 | . 28 33 21 Storage 12 | . 14 11 11 Processor 9 | . . 21 22 Ballistic Gun 13 | . 17 11 4 Launcher 4 | . 6 . 2 Peak Build Rating 12 | 6 7 10 12 Average Rating 7 | 4 5 9 8 On Entrance 5 | . 6 5 10 Avg Prop Armor Cover (%) . | . . . . Naked Turns . | . . . . Heaviest Build 20 | 11 20 15 18 Greatest Support 30 | 20 20 30 30 Greatest Overweight (x) 3 | 3 . . 1 Average Overweight (x) . | . . . . Largest Inventory Capacity 10 | 8 10 10 10 Average Capacity 9 | 7 9 10 10 Most Carried 8 | 2 8 7 8 Average Carried 4 | 1 5 5 5 Final Capacity 10 | 8 10 10 10 Final Carried 7 | 2 6 7 3 Class Distribution -------------------- 69% | Mutant 30% | Scavenger-Mutant Dominant Class ---------------- Mutant | -10/Materials Scavenger-Mutant | -9/Materials Mutant | -9/Storage Resources | -11 -10 -9 -9 ----------- Run | Yrd Mat Mat Sto Matter Collected 614 | 214 162 . 238 Remotely . | . . . . Salvage Created 764 | . 388 . 376 Parts 59 | . 31 . 28 Haulers Intercepted . | . . . . Recyclers Shooed 3 | . 2 . 1 Parts Field Recycled . | . . . . Retrieved Matter . | . . . . Parts Self-Destructed . | . . . . Prevented . | . . . . Parts Restored . | . . . . Kills | -11 -10 -9 -9 ------- Run | Yrd Mat Mat Sto Combat Hostiles Destroyed 28 | . 15 . 13 Guns 9 | . 6 . 3 AOE 19 | . 9 . 10 Classes Destroyed 6 | . 4 . 2 Worker 2 | . . . 2 Tunneler 1 | . 1 . . Recycler 1 | . . . 1 Watcher 2 | . 2 . . Swarmer 8 | . 6 . 2 Grunt 20 | . 9 . 11 Best Kill Streak 13 | . 3 . 13 Combat Bots Only 10 | . 3 . 10 Max Kills in Single Turn 4 | . 3 . 4 Gunslinging . | . . . . Exploded 3 | . 2 . 3 Melee . | . . . . Uniques/NPCs Destroyed . | . . . . Combat | -11 -10 -9 -9 -------- Run | Yrd Mat Mat Sto Hostile Shots Fired 177 | . 52 6 119 Missed 46 | . 12 1 33 Hits 131 | . 40 5 86 Projectile 131 | . 40 5 86 Damage Taken 1764 | . 610 58 1096 Core 488 | . 83 . 405 Absorbed by Shields . | . . . . Core Remaining (%) 83 | 100 66 . . Volleys Fired 65 | . 44 . 21 Largest 2 | . 2 . 1 Hottest 50 | . 50 . 45 Shots Fired 86 | . 65 . 21 Gun 64 | . 49 . 15 Cannon . | . . . . Launcher 22 | . 16 . 6 Special . | . . . . Kinetic 60 | . 49 . 11 Thermal . | . . . . Explosive 22 | . 16 . 6 Electromagnetic 4 | . . . 4 Robot Hit Streak 11 | . 6 . 11 Robot Miss Streak 4 | . 4 . 2 Penetration Max . | . . . . Secondary Targets 1 | . 1 . . Max Gunslinging Chain 1 | . 1 . . Shots Hit Robots 54 | . 34 . 20 Core Hits 51 | . 29 . 22 Critical Kills . | . . . . Critical Parts Destroyed . | . . . . Critical Strikes . | . . . . Melee Attacks . | . . . . Impact . | . . . . Slashing . | . . . . Piercing . | . . . . Sneak Attacks . | . . . . Combat Hostiles . | . . . . Follow-up Attacks . | . . . . Damage Inflicted 2356 | . 1041 . 1315 Guns 581 | . 334 . 247 Cannons . | . . . . Explosions 1765 | . 707 . 1058 Melee . | . . . . Ramming 10 | . . . 10 Kinetic 515 | . 334 . 181 Thermal . | . . . . Explosive 1765 | . 707 . 1058 Electromagnetic 66 | . . . 66 Impact . | . . . . Slashing . | . . . . Piercing . | . . . . Highest Corruption 2 | . . 2 2 Average Corruption 2 | . . 2 2 Corruption Purged . | . . . . Corruption Blocked . | . . . . Effects 7 | . . 2 5 Message Errors 1 | . . 1 . Heat Flow Errors 1 | . . . 1 Energy Discharges 1 | . . . 1 Parts Rejected 2 | . . . 2 Data Loss (minor) 1 | . . 1 . Data Loss (major) 1 | . . . 1 Overload Shots . | . . . . Overflow Damage 77 | . 21 . 56 Projectiles . | . . . . Explosions 77 | . 21 . 56 Melee . | . . . . Knockbacks . | . . . . Impact . | . . . . Kinetic . | . . . . Secondary . | . . . . Self-Inflicted Damage 231 | . 151 . 80 Shots 10 | . 6 . 4 Rammed . | . . . . Targets Rammed 6 | . . . 6 Kicked 6 | . . . 6 Crushed . | . . . . Highest Temperature 102 | . 12 . 102 Average Temperature 16 | . 5 . 32 Received Heat Transfer 762 | . 246 30 486 Siege Activations . | . . . . Martial Activations . | . . . . Shielding Activations . | . . . . Robots Disrupted . | . . . . Combat Hostiles . | . . . . Robots Corrupted . | . . . . Combat Hostiles . | . . . . Parts Fried . | . . . . Impact Corruptions . | . . . . Robots Melted . | . . . . Combat Hostiles . | . . . . Parts Melted . | . . . . Heat Transferred . | . . . . Parts Sabotaged . | . . . . Parts Stolen . | . . . . Parts Stripped . | . . . . Power Chain Reactions . | . . . . Alert | -11 -10 -9 -9 ------- Run | Yrd Mat Mat Sto Maximum Alert Level 1 | . 1 . 1 Low Security (%) 75 | 100 58 100 80 Level 1 24 | . 41 . 19 Level 2 . | . . . . Level 3 . | . . . . Level 4 . | . . . . Level 5 . | . . . . High Security . | . . . . Max Security . | . . . . Peak Influence 369 | . 264 98 369 Initial 98 | . . 98 . Average 88 | . 125 36 84 Influence Increases 938 | . 492 . 446 Destroy 0b10 Robot/C 560 | . 300 . 260 Destroy 0b10 Robot/NC 30 | . 15 . 15 Destroy Leader 114 | . 64 . 50 Successful Hack 7 | . . . 7 Disable Machine 60 | . 15 . 45 Destroy Structure 152 | . 98 . 54 Lose Combat Pursuer 15 | . . . 15 Influence Decreases 579 | . 258 234 87 Entered New Map 136 | . . 136 . Time Decay 393 | . 228 98 67 Lost Part 50 | . 30 . 20 Squads Dispatched 8 | . 2 1 5 Investigation 4 | . 2 . 2 Extermination . | . . . . Reinforcement 2 | . . 1 1 Assault . | . . . . Garrison 2 | . . . 2 Intercept . | . . . . Searches Triggered . | . . . . Construction Impeded . | . . . . Haulers Reinforced . | . . . . Active Scanning Responses . | . . . . Cargo Convoy Interrupts . | . . . . Stealth | -11 -10 -9 -9 --------- Run | Yrd Mat Mat Sto Distress Signals 3 | . 1 . 2 Communications Jammed . | . . . . Distress Signals . | . . . . Times Spotted 47 | . 20 5 22 Peak Tracking Total 7 | . 4 4 7 Tactical Retreats 1 | . . . 1 Traps | -11 -10 -9 -9 ------- Run | Yrd Mat Mat Sto Traps Triggered 3 | . 1 1 1 Indirectly . | . . . . Trap Hack Attempts . | . . . . Triggered . | . . . . Disarmed . | . . . . Reprogrammed . | . . . . Reused . | . . . . Traps Extracted . | . . . . Installed . | . . . . Triggered . | . . . . Machines | -11 -10 -9 -9 ---------- Run | Yrd Mat Mat Sto Machines Disabled 4 | . 1 . 3 Max in Single Turn 1 | . 1 . 1 Machines Repaired . | . . . . Machines Dismantled . | . . . . Machines Sabotaged . | . . . . Overloaded Fab Kills . | . . . . Hacking | -11 -10 -9 -9 --------- Run | Yrd Mat Mat Sto Machines Accessed 5 | . 3 . 2 Terminals 5 | . 3 . 2 Fabricators . | . . . . Repair Stations . | . . . . Recycling Units . | . . . . Scanalyzers . | . . . . Garrison Access . | . . . . Total Hacks 14 | . 7 . 7 Successful 2 | . 1 . 1 Failed 12 | . 6 . 6 Catastrophic 1 | . . . 1 Database Lockouts . | . . . . Manual . | . . . . Terminals 14 | . 7 . 7 Fabricators . | . . . . Repair Stations . | . . . . Recycling Units . | . . . . Scanalyzers . | . . . . Garrison Access . | . . . . Terminal Hacks 2 | . 1 . 1 Open Door 1 | . . . 1 Locate Traps 1 | . 1 . . Fabricator Hacks . | . . . . Repair Station Hacks . | . . . . Recycling Unit Hacks . | . . . . Scanalyzer . | . . . . Garrison Access Hacks . | . . . . Unauthorized Hacks . | . . . . Terminals . | . . . . Fabricators . | . . . . Repair Stations . | . . . . Recycling Units . | . . . . Scanalyzers . | . . . . Garrison Access . | . . . . Data Cores Recovered . | . . . . Used . | . . . . Hacking Detections 4 | . 2 . 2 Full Trace Events 3 | . 1 . 2 Feedback Events . | . . . . Feedback Blocked . | . . . . Robot Schematics Acquired . | . . . . Robots Built . | . . . . Authchips . | . . . . Time . | . . . . Total Robot Build Rating . | . . . . Part Schematics Acquired . | . . . . Parts Built . | . . . . Authchips . | . . . . Time . | . . . . Total Part Build Rating . | . . . . Part Studies Acquired . | . . . . Parts Repaired . | . . . . Time . | . . . . Parts Recycled . | . . . . Recycled Matter . | . . . . Retrieved Matter . | . . . . Retrieved Components . | . . . . Parts Scanalyzed . | . . . . Part Schematics Acquired . | . . . . Parts Damaged . | . . . . Bothacking | -11 -10 -9 -9 ------------ Run | Yrd Mat Mat Sto Used RIF Installer . | . . . . Robots Hacked . | . . . . Non-combat . | . . . . Combat . | . . . . Robot Hacks Applied . | . . . . Relay Couplers Released . | . . . . Fabnet Peak Effective % . | . . . . Robots Rewired . | . . . . Allies Hacked . | . . . . Hacks Repelled . | . . . . Allies | -11 -10 -9 -9 -------- Run | Yrd Mat Mat Sto Total Allies . | . . . . Largest Group . | . . . . Highest-Rated Group . | . . . . Highest-Rated Ally . | . . . . Total Orders . | . . . . Ally Attacks . | . . . . Total Damage . | . . . . Kills . | . . . . Allies Corrupted . | . . . . Allies Melted . | . . . . Intel | -11 -10 -9 -9 ------- Run | Yrd Mat Mat Sto Active Infowar (turns) . | . . . . Robot Analysis Total . | . . . . Derelict Logs Recovered . | . . . . Drone Launches . | . . . . Drone Recoveries . | . . . . Exploration | -11 -10 -9 -9 ------------- Run | Yrd Mat Mat Sto Turns Passed 1182 | 83 610 285 204 Spaces Moved 791 | 57 389 232 113 Core 14 | 14 . . . Treads . | . . . . Legs 777 | 43 389 232 113 Wheels . | . . . . Hover . | . . . . Flight . | . . . . Fastest Speed 50 | 50 120 120 120 Average Speed 120 | 128 120 120 122 Slowest Speed 200 | 200 120 120 190 Overloaded Moves . | . . . . Propulsion Burnouts . | . . . . Robots Hopped . | . . . . Potential Cave-ins . | . . . . Cave-ins Triggered 1 | . . . 1 Exploration Rate (%) 30 | 4 71 17 29 Regions Visited 3 Branch Regions 1 Pre-discovered Areas . | . . . . Known Exits Taken 1 | . . 1 . Unknown Exits Taken 2 | 1 1 . . Scrap Searched . | . . . . Spaces Dug . | . . . . Terrain Destroyed 160 | . 102 . 58 Melee . | . . . . Projectile . | . . . . AOE 160 | . 102 . 58 Terrain Rammed . | . . . . Walls Destroyed . | . . . . Machines Disabled . | . . . . Actions | -11 -10 -9 -9 --------- Run | Yrd Mat Mat Sto Total 925 | 64 468 238 155 Wait 16 | . 11 . 5 Move 788 | 56 388 231 113 Hop . | . . . . Pick Up 17 | 2 9 4 2 Fast Attach 10 | 6 2 . 2 Attach 13 | . 4 3 6 Detach . | . . . . Swap 3 | . 3 . . Drop 7 | . 7 . . Fire 65 | . 44 . 21 Melee . | . . . . Ram . | . . . . Kick 6 | . . . 6 Crush . | . . . . Escape Stasis . | . . . . Rewire . | . . . . Trap . | . . . . Miscellaneous . | . . . . Route ------- -11/Scrapyard -10/Materials (discovered 3 exits: [*Mat x2] / [*Min]) -9/Materials -9/Storage History --------- Turn | Location | Event 20 | -11/Scrapyard | Discovered new exit (range 15) 84 | -11/Scrapyard | Entered Materials 309 | -10/Materials | Build established: Mutant 356 | -10/Materials | Discovered new exit (range 12) 533 | -10/Materials | Discovered new exit (range 13) 632 | -10/Materials | Discovered new exit (range 15) 694 | -10/Materials | Entered another Materials area 694 | -9/Materials | Evolved 2 slots: Propulsion x1, Utility x1 697 | -9/Materials | Discovered new exit (range 5) 703 | -9/Materials | Identified exit to Storage 979 | -9/Materials | Entered Storage 983 | -9/Storage | Build established: Scavenger-Mutant 1068 | -9/Storage | Garrison activated, responded to threat 1095 | -9/Storage | Core integrity fell below 50% 1120 | -9/Storage | Lost 6 parts (1p3n2w) 1157 | -9/Storage | Core integrity fell below 20% 1183 | -9/Storage | Destroyed 10 combat bots 1184 | -9/Storage | Crushed by falling debris 1184 | -9/Storage | Smashed by cave-in Last Messages --------------- 01175_ U-05 Engineer builds a Wall. 01176_ U-05 Engineer lays Concrete. 01177_ K-01 Serf collects debris. 01177_ Acquired 13 matter. 01177_ K-01 Serf collects debris. 01178_ The unstable cave ceiling collapses. 01178_ R-06 Scavenger inserts Corrupted Aluminum Leg into recycling unit. 01178_ U-05 Engineer lays Concrete. 01179_ U-05 Engineer builds a Wall. 01179_ Acquired Ion Engine. 01179_ U-05 Engineer lays Concrete. 01181_ R-06 Scavenger inserts Hvy. EM Pulse Gun into recycling unit. 01181_ K-01 Serf collects debris. 01181_ U-05 Engineer lays Concrete. 01182_ Acquired Aluminum Leg. 01183_ U-05 Engineer builds a Wall. 01184_ The unstable cave ceiling collapses. 01184_ Crushed by falling debris. Map ----- +----------------------------------------------------+ | ?????????????????????????????????????????????????? | | ?????????????????????????????????????????????????? | | ?????????????????????????????????????????????????? | | ?????????????????????????????????????????????????? | | ?????????????????????????????????????????????????? | | ?????????????????????????????????????????????????? | | ?????????????????????????????????????????????????? | | ?????????????????????????????????????????????????? | | ?????????????????????????????????????????????????? | | ?????????????????????????????????????????????????? | | ?????????????????????????????????????????????????? | | ?????????????????????#???????????????????????????? | | ?????????????????????# ?????????????????????????? | | ?????????????????????? ?????????????????????????? | | ?????????????????????? ?????????????????????????? | | ?????????????????????? ????????????????????????? | | ?????????????????????? ???? "??????????????????? | | ??????????????????????? ??? ""?????????????????? | | ??????????????????????? ?? g?????????????????? | | ???????????????????????o ? ""?????????????????? | | ???????????????????????# ? [ """????????????????? | | ???????????????????????# ? """ ???????????????? | | ??????????????????????## # a ?????????????????? | | ?????????????????????## ##"T"???????????????????? | | ?????????????######### !k= ###??????????????????? | | ?????????? @ ##?????????????????? | | ????????????????###### [ ! #?????????????????? | | ??????????????? """ = ##???????#?????????? | | ????????????#"" "T" # ########/###???????? | | ?????????????"Yr #???????? | | ?????????????"" "" #???????? | | ?????????????## "" #???????? | | ??????????????# """ #??????## | | ??????????????# """ #??????# | | ??????????????# """ == #?????## | | ??????????????# ##+## #######?????#T | | ????????????????######## #k= ! =#?????##+ | | ???????????????????????# u# #?????# | | ???????????????????????# # """ #?????# | | ???????????????????????# #= """ #?????# | | ???????????????????????# %! """ #?????# | | ?????????????????????? + ! =* #?????# | | ?????????????????????" # #####/######?????## | | ???????????????????? # ############ | | ??????????????????? ?# + # | | ?????????????????? ???# # =#! | | ?????????????????##????# #########+# *[/= | | ???????????????????????# ??????????# [#* | | ???????????????????????# ??????????# #% | | ???????????????????????# ??????????############ | +----------------------------------------------------+ Best States ------------- Heat Dissipation 28 Energy Generation 10 Energy Capacity 250 Matter Stores 254 Matter Capacity 300 Sight Range 16 Terrain Scan Density 10 Evasion (%) 55 Targeting Accuracy 6 Item Schematics ----------------- None Robot Schematics ------------------ None Fabricated ------------ Nothing Repaired ---------- Nothing Studied --------- None Alien Tech Used ----------------- None Achievements -------------- None Challenges ------------ None Game ------ Seed AblativeLongswordSlayer Manual? 0 Play Time 00:10:56 Cumulative 20.3 hours Start 2026.07.06 @ 00:34:45 End 2026.07.06 @ 00:45:25 Sessions 1 Manual Loads 0 Difficulty Rogue Special Mode None Game No. 43 Rogue 43 Adventurer 0 Explorer 0 Win Type - Total 0 Types 0/0/0/0/0/0/0/0/0/0 Lore% 5 Gallery% 17 Achievement% 13 Wizard Run 0 Options --------- Layout 1 ASCII 0 Keyboard 0 Movement Arrows Keybinds 0 Fullscreen 1 Font 36/Smallcaps Map View 51x40 Zoom Use 0% Tactical HUD 1 Map Filters NONE Filters NONE Steam 1 RUN: 6b3bf1db-e2d9-4367-aa8b-487f2037b31d